fUSD/lending_fUSD_20251204
["ID","MTS","AMOUNT","RATE_DAILY","PERIOD"]
[396232666,1764850256239,-566.489738,0.000248,7]
[396232667,1764850256249,-566.489738,0.000248,7]
[396232668,1764850256258,-566.489738,0.000248,7]
[396232669,1764850256268,-151.0,0.000248,7]
[396232670,1764850256277,-566.489738,0.000248,7]
[396232671,1764850256286,-159.65471122,0.000249,3]
[396232705,1764850473974,305.07669338,0.00022,30]
[396232729,1764850562097,1035.77,0.00025,120]
[396232781,1764851114256,3479.33246915,0.00022,30]
[396232782,1764851124739,6141.43794022,0.0002,30]
[396232783,1764851132561,1027.15335262,0.0002,120]
[396232784,1764851142989,61276.41834899,0.0002,30]
[396232797,1764851154419,528.90200565,0.0001075,30]
[396232798,1764851179323,278954.68213618,0.000209,30]
[396232799,1764851205576,2273.24590795,0.0002,30]
[396232805,1764851308467,258.75260865,0.00014,30]
[396232806,1764851310428,911.52138536,0.000199,120]
[396232809,1764851314738,1598.7829362,0.00015,30]
[396232810,1764851316893,1598.88304794,0.0002041,30]
[396232811,1764851324768,1002.0,0.00025,120]
[396232817,1764851431321,-588.16,0.00013699,2]
[396232818,1764851431331,-200.0,0.00015009,2]
[396232819,1764851431340,-200.0,0.00015009,2]
[396232820,1764851431350,-500.0,0.00015009,2]
[396232821,1764851431360,-277.93543364,0.00015068,2]
[396232822,1764851431370,-300.0,0.00015563,2]
[396232823,1764851431380,-1200.0,0.00015563,2]
[396232824,1764851431390,-233.0,0.00015563,2]
[396232825,1764851431400,-500.0,0.00015565,2]
[396232826,1764851431410,-337.91712104,0.00015565,2]
[396232827,1764851431422,-105.05858695,0.00015565,2]
[396232828,1764851431431,-150.0,0.00015762,2]
[396232829,1764851431441,-75.37166215,0.00015872,2]
[396232830,1764851431452,-224.62833785,0.00015872,2]
[396232831,1764851431461,-358.55714739,0.00015873,2]
[396232832,1764851431473,-141.44285261,0.00015873,2]
[396232833,1764851431481,-135.21604244,0.00015873,2]
[396232843,1764851437821,-365.72741999,0.00015873,2]
[396232844,1764851437831,-521.20641277,0.00015873,2]
[396232845,1764851437841,-501.68277734,0.00015873,2]
[396232846,1764851437851,-502.39184682,0.00015873,2]
[396232847,1764851437860,-500.78335608,0.00015873,2]
[396232848,1764851437870,-501.85227066,0.00015873,2]
[396232849,1764851437879,-501.34426787,0.00015873,2]
[396232850,1764851437889,-201.10931532,0.00015873,2]
[396232851,1764851437898,-500.0,0.00015873,2]
[396232852,1764851437907,-502.78054147,0.00015873,2]
[396232853,1764851437917,-72402.00080359,0.00016,4]
[396232854,1764851437928,-268.31800732,0.00016,4]
[396232855,1764851437939,-19524.9198643,0.00016,4]
[396232856,1764851439389,-900.0,0.00016,4]
[396232860,1764851439446,-471.48917691,0.00016,4]
[396232862,1764851439457,-1000.0,0.00016,4]
[396232871,1764851439608,-201982.27828664,0.00016,4]
[396232872,1764851439618,-1702.0,0.00016216,2]
[396232874,1764851439627,-288.0,0.00016249,2]
[396232875,1764851439636,-150.99,0.00016259,2]
[396232877,1764851439646,-999.99,0.00016259,2]
[396232879,1764851439656,-4793.14701713,0.00016269,2]
[396232880,1764851439665,-9999.99,0.00016269,2]
[396232882,1764851439674,-151.0,0.00016345,2]
[396232883,1764851439684,-150.99,0.00016355,2]
[396232884,1764851439694,-2955.71,0.00016355,2]
[396232885,1764851439703,-1834.01,0.00016355,2]
[396232886,1764851439712,-9999.99,0.00016355,2]
[396232887,1764851439721,-9999.99,0.00016355,2]
[396232888,1764851439731,-197.0,0.00016363,2]
[396232889,1764851439740,-228.86739996,0.000164,2]
[396232890,1764851439750,-1204.0,0.0001641,2]
[396232891,1764851439759,-1295.41732173,0.00016423,2]
[396232892,1764851439769,-966.0,0.00016443,2]
[396232893,1764851439778,-168.0,0.00016451,2]
[396232894,1764851439787,-168.0,0.00016525,2]
[396232895,1764851439797,-357.89178264,0.000166,2]
[396232896,1764851439806,-176.32,0.00016712,2]
[396232897,1764851439815,-168.0,0.00016732,2]
[396232898,1764851439824,-976.88386487,0.00016773,2]
[396232899,1764851439834,-277.35679052,0.00016773,2]
[396232900,1764851439844,-151.96835927,0.00016773,2]
[396232901,1764851439853,-300.0,0.00016773,2]
[396232902,1764851439862,-2340.0,0.00016773,2]
[396232903,1764851439871,-168.0,0.0001679,2]
[396232904,1764851439882,-71037.6743,0.000168,2]
[396232905,1764851439891,-200.0,0.00016864,2]
[396232906,1764851439901,-151.0,0.0001689,2]
[396232907,1764851439911,-151.0,0.0001689,2]
[396232908,1764851439921,-151.0,0.0001689,2]
[396232909,1764851439930,-151.0,0.0001689,2]
[396232910,1764851439940,-151.0,0.0001689,2]
[396232911,1764851439950,-151.0,0.0001689,2]
[396232912,1764851439960,-151.0,0.0001689,2]
[396232913,1764851439969,-151.0,0.0001689,2]
[396232914,1764851439979,-151.0,0.0001689,2]
[396232915,1764851439988,-463.13997241,0.0001689,2]
[396232916,1764851439998,-151.0,0.0001689,2]
[396232917,1764851440007,-500.0,0.0001689,2]
[396232918,1764851440017,-500.0,0.0001689,2]
[396232919,1764851440026,-153.26122831,0.0001689,2]
[396232920,1764851440036,-500.0,0.0001689,2]
[396232921,1764851440045,-151.0,0.0001689,2]
[396232922,1764851440055,-500.0,0.0001689,2]
[396232923,1764851440064,-500.0,0.0001689,2]
[396232924,1764851440073,-151.0,0.0001689,2]
[396232925,1764851440083,-500.0,0.0001689,2]
[396232926,1764851440096,-500.0,0.0001689,2]
[396232927,1764851440106,-500.0,0.0001689,2]
[396232928,1764851440116,-151.0,0.0001689,2]
[396232929,1764851440127,-500.0,0.0001689,2]
[396232930,1764851440136,-500.0,0.0001689,2]
[396232931,1764851440146,-500.0,0.0001689,2]
[396232932,1764851440155,-151.0,0.0001689,2]
[396232933,1764851440166,-500.0,0.0001689,2]
[396232934,1764851440176,-500.0,0.0001689,2]
[396232935,1764851440185,-500.0,0.0001689,2]
[396232936,1764851440195,-151.0,0.0001689,2]
[396232937,1764851440204,-500.0,0.0001689,2]
[396232938,1764851440213,-500.0,0.0001689,2]
[396232939,1764851440222,-500.0,0.0001689,2]
[396232940,1764851440232,-500.0,0.0001689,2]
[396232941,1764851440241,-500.0,0.0001689,2]
[396232942,1764851440250,-200.0,0.0001689,2]
[396232943,1764851440260,-208.28879437,0.0001689,2]
[396232944,1764851440269,-151.0,0.0001689,2]
[396232945,1764851440278,-500.0,0.0001689,2]
[396232946,1764851440287,-500.0,0.0001689,2]
[396232947,1764851440296,-151.0,0.0001689,2]
[396232948,1764851440306,-500.0,0.0001689,2]
[396232949,1764851440315,-151.0,0.0001689,2]
[396232950,1764851440324,-500.0,0.0001689,2]
[396232951,1764851440333,-200.0,0.0001689,2]
[396232952,1764851440342,-500.0,0.0001689,2]
[396232953,1764851440351,-151.0,0.0001689,2]
[396232954,1764851440362,-475.66372028,0.0001689,2]
[396232955,1764851440371,-500.0,0.0001689,2]
[396232956,1764851440380,-151.0,0.0001689,2]
[396232957,1764851440390,-151.0,0.0001689,2]
[396232958,1764851440401,-212.20826158,0.0001689,2]
[396232959,1764851440410,-151.0,0.0001689,2]
[396232960,1764851440420,-653.14815651,0.0001689,2]
[396232961,1764851440429,-574.12855637,0.0001689,2]
[396232962,1764851440438,-500.0,0.0001689,2]
[396232963,1764851440447,-500.0,0.0001689,2]
[396232964,1764851440457,-500.0,0.0001689,2]
[396232965,1764851440466,-500.0,0.0001689,2]
[396232966,1764851440475,-500.0,0.0001689,2]
[396232967,1764851440485,-500.0,0.0001689,2]
[396232968,1764851440494,-500.0,0.0001689,2]
[396232969,1764851440503,-500.0,0.0001689,2]
[396232970,1764851440512,-500.0,0.0001689,2]
[396232972,1764851440521,-500.0,0.0001689,2]
[396232974,1764851440531,-500.0,0.0001689,2]
[396232976,1764851440540,-200.0,0.0001689,2]
[396232978,1764851440549,-155.52772105,0.0001689,2]
[396232980,1764851440558,-500.0,0.0001689,2]
[396232982,1764851440567,-2000.0,0.0001689,2]
[396232984,1764851440575,-500.0,0.0001689,2]
[396232986,1764851440585,-2000.0,0.0001689,2]
[396232988,1764851440594,-500.0,0.0001689,2]
[396232990,1764851440602,-500.0,0.0001689,2]
[396232992,1764851440612,-2000.0,0.0001689,2]
[396232994,1764851440624,-500.0,0.0001689,2]
[396232996,1764851440633,-500.0,0.0001689,2]
[396232998,1764851440642,-151.0,0.0001689,2]
[396233000,1764851440651,-2000.0,0.0001689,2]
[396233002,1764851440661,-500.0,0.0001689,2]
[396233004,1764851440671,-500.0,0.0001689,2]
[396233006,1764851440680,-1303.83089546,0.0001689,2]
[396233008,1764851440689,-500.0,0.0001689,2]
[396233010,1764851440699,-280.9463541,0.0001689,2]
[396233012,1764851440708,-672.23794397,0.0001689,2]
[396233014,1764851440717,-1000.0,0.0001689,2]
[396233016,1764851440727,-500.0,0.0001689,2]
[396233018,1764851440736,-1000.0,0.0001689,2]
[396233020,1764851440745,-500.0,0.0001689,2]
[396233022,1764851440754,-880.97458729,0.0001689,2]
[396233024,1764851440763,-1000.0,0.0001689,2]
[396233026,1764851440773,-500.0,0.0001689,2]
[396233028,1764851440783,-152.68993088,0.0001689,2]
[396233030,1764851440792,-1000.0,0.0001689,2]
[396233032,1764851440801,-500.0,0.0001689,2]
[396233033,1764851440811,-1000.0,0.0001689,2]
[396233036,1764851440820,-500.0,0.0001689,2]
[396233038,1764851440830,-1000.0,0.0001689,2]
[396233040,1764851440839,-500.0,0.0001689,2]
[396233041,1764851440848,-1000.0,0.0001689,2]
[396233043,1764851440858,-500.0,0.0001689,2]
[396233045,1764851440867,-1000.0,0.0001689,2]
[396233047,1764851440876,-500.0,0.0001689,2]
[396233049,1764851440886,-500.0,0.0001689,2]
[396233051,1764851440895,-1000.0,0.0001689,2]
[396233053,1764851440904,-1000.0,0.0001689,2]
[396233055,1764851440914,-250.0,0.0001689,2]
[396233057,1764851440923,-1000.0,0.0001689,2]
[396233059,1764851440932,-250.0,0.0001689,2]
[396233061,1764851440941,-250.0,0.0001689,2]
[396233063,1764851440951,-250.0,0.0001689,2]
[396233065,1764851440960,-250.0,0.0001689,2]
[396233067,1764851440971,-191.35239521,0.0001689,2]
[396233069,1764851440980,-500.0,0.0001689,2]
[396233071,1764851440990,-500.0,0.0001689,2]
[396233073,1764851440999,-500.0,0.0001689,2]
[396233075,1764851441008,-615.64593565,0.0001689,2]
[396233077,1764851441018,-10000.0,0.000169,2]
[396233079,1764851441027,-4554.51108971,0.000169,2]
[396233081,1764851441037,-339.7191923,0.000169,2]
[396233083,1764851441046,-1746.56490178,0.000169,2]
[396233085,1764851441055,-688.60730726,0.000169,2]
[396233087,1764851441064,-168.49829835,0.000169,2]
[396233089,1764851441075,-468.25474322,0.000169,2]
[396233091,1764851441084,-175.81391496,0.000169,2]
[396233093,1764851441095,-212.42032065,0.000169,2]
[396233095,1764851441104,-500.0,0.000169,2]
[396233097,1764851441114,-500.0,0.000169,2]
[396233099,1764851441123,-500.0,0.000169,2]
[396233101,1764851441132,-500.0,0.000169,2]
[396233103,1764851441141,-1592.44,0.00016922,2]
[396233105,1764851441150,-168.0,0.0001693,2]
[396233107,1764851441159,-168.0,0.00016931,2]
[396233109,1764851441168,-168.0,0.00016967,2]
[396233111,1764851441178,-548.61871888,0.0001699,2]
[396233112,1764851441188,-548.61871888,0.0001699,2]
[396233114,1764851441197,-548.61871888,0.0001699,2]
[396233116,1764851441207,-306.0,0.00016998,2]
[396233119,1764851441216,-405.1436757,0.00016999,2]
[396233120,1764851441225,-500.0,0.00016999,2]
[396233122,1764851441235,-500.0,0.00016999,2]
[396233124,1764851441245,-500.0,0.00016999,2]
[396233126,1764851441254,-500.0,0.00016999,2]
[396233129,1764851441264,-500.0,0.00016999,2]
[396233130,1764851441273,-500.0,0.00016999,2]
[396233132,1764851441283,-500.0,0.00016999,2]
[396233134,1764851441292,-500.0,0.00016999,2]
[396233136,1764851441301,-500.0,0.00016999,2]
[396233138,1764851441310,-500.0,0.00016999,2]
[396233140,1764851441320,-500.0,0.00016999,2]
[396233142,1764851441330,-500.0,0.00016999,2]
[396233144,1764851441340,-500.0,0.00016999,2]
[396233146,1764851441349,-500.0,0.00016999,2]
[396233148,1764851441358,-500.0,0.00016999,2]
[396233150,1764851441367,-500.0,0.00016999,2]
[396233152,1764851441376,-500.0,0.00016999,2]
[396233154,1764851441386,-500.0,0.00016999,2]
[396233156,1764851441395,-500.0,0.00016999,2]
[396233158,1764851441404,-500.0,0.00016999,2]
[396233160,1764851441414,-500.0,0.00016999,2]
[396233162,1764851441423,-500.0,0.00016999,2]
[396233164,1764851441432,-230.51556838,0.00016999,2]
[396233166,1764851441441,-500.0,0.00016999,2]
[396233168,1764851441450,-500.0,0.00016999,2]
[396233170,1764851441459,-500.0,0.00016999,2]
[396233172,1764851441467,-500.0,0.00016999,2]
[396233173,1764851441476,-500.0,0.00016999,2]
[396233175,1764851441485,-500.0,0.00016999,2]
[396233177,1764851441494,-500.0,0.00016999,2]
[396233179,1764851441504,-500.0,0.00016999,2]
[396233182,1764851441513,-500.0,0.00016999,2]
[396233184,1764851441522,-500.0,0.00016999,2]
[396233185,1764851441531,-500.0,0.00016999,2]
[396233187,1764851441541,-500.0,0.00016999,2]
[396233190,1764851441551,-500.0,0.00016999,2]
[396233192,1764851441560,-500.0,0.00016999,2]
[396233194,1764851441570,-500.0,0.00016999,2]
[396233195,1764851441580,-500.0,0.00016999,2]
[396233198,1764851441590,-500.0,0.00016999,2]
[396233200,1764851441599,-500.0,0.00016999,2]
[396233201,1764851441609,-500.0,0.00016999,2]
[396233203,1764851441618,-500.0,0.00016999,2]
[396233205,1764851441627,-500.0,0.00016999,2]
[396233207,1764851441637,-500.0,0.00016999,2]
[396233209,1764851441646,-500.0,0.00016999,2]
[396233211,1764851441655,-500.0,0.00016999,2]
[396233213,1764851441665,-500.0,0.00016999,2]
[396233215,1764851441677,-500.0,0.00016999,2]
[396233217,1764851441686,-500.0,0.00016999,2]
[396233219,1764851441695,-500.0,0.00016999,2]
[396233221,1764851441705,-500.0,0.00016999,2]
[396233223,1764851441714,-500.0,0.00016999,2]
[396233225,1764851441723,-500.0,0.00016999,2]
[396233227,1764851441732,-500.0,0.00016999,2]
[396233229,1764851441741,-500.0,0.00016999,2]
[396233231,1764851441751,-500.0,0.00016999,2]
[396233233,1764851441760,-500.0,0.00016999,2]
[396233236,1764851441770,-500.0,0.00016999,2]
[396233238,1764851441779,-500.0,0.00016999,2]
[396233240,1764851441788,-500.0,0.00016999,2]
[396233241,1764851441798,-500.0,0.00016999,2]
[396233244,1764851441807,-500.0,0.00016999,2]
[396233246,1764851441816,-500.0,0.00016999,2]
[396233248,1764851441825,-500.0,0.00016999,2]
[396233250,1764851441835,-500.0,0.00016999,2]
[396233252,1764851441844,-299.68739989,0.00016999,2]
[396233254,1764851441853,-500.0,0.00016999,2]
[396233256,1764851441863,-500.0,0.00016999,2]
[396233258,1764851441872,-500.0,0.00016999,2]
[396233259,1764851441882,-500.0,0.00016999,2]
[396233262,1764851441891,-500.0,0.00016999,2]
[396233264,1764851441901,-500.0,0.00016999,2]
[396233265,1764851441910,-500.0,0.00016999,2]
[396233267,1764851441920,-500.0,0.00016999,2]
[396233269,1764851441930,-500.0,0.00016999,2]
[396233271,1764851441939,-500.0,0.00016999,2]
[396233273,1764851441948,-500.0,0.00016999,2]
[396233275,1764851441958,-500.0,0.00016999,2]
[396233277,1764851441967,-500.0,0.00016999,2]
[396233279,1764851441977,-500.0,0.00016999,2]
[396233280,1764851441987,-500.0,0.00016999,2]
[396233281,1764851441997,-500.0,0.00016999,2]
[396233282,1764851442006,-500.0,0.00016999,2]
[396233283,1764851442016,-500.0,0.00016999,2]
[396233284,1764851442025,-500.0,0.00016999,2]
[396233285,1764851442034,-500.0,0.00016999,2]
[396233286,1764851442044,-500.0,0.00016999,2]
[396233287,1764851442054,-500.0,0.00016999,2]
[396233288,1764851442063,-500.0,0.00016999,2]
[396233289,1764851442072,-500.0,0.00016999,2]
[396233290,1764851442082,-500.0,0.00016999,2]
[396233291,1764851442095,-500.0,0.00016999,2]
[396233292,1764851442104,-500.0,0.00016999,2]
[396233293,1764851442114,-500.0,0.00016999,2]
[396233294,1764851442124,-500.0,0.00016999,2]
[396233295,1764851442135,-500.0,0.00016999,2]
[396233296,1764851442144,-500.0,0.00016999,2]
[396233297,1764851442153,-500.0,0.00016999,2]
[396233298,1764851442164,-300.0,0.00016999,2]
[396233299,1764851442173,-500.0,0.00016999,2]
[396233301,1764851442183,-500.0,0.00016999,2]
[396233305,1764851442192,-500.0,0.00016999,2]
[396233306,1764851442379,-500.0,0.00016999,2]
[396233307,1764851442388,-500.0,0.00016999,2]
[396233308,1764851442397,-500.0,0.00016999,2]
[396233309,1764851442406,-500.0,0.00016999,2]
[396233310,1764851442416,-500.0,0.00016999,2]
[396233311,1764851442424,-500.0,0.00016999,2]
[396233312,1764851442442,-500.0,0.00016999,2]
[396233313,1764851442453,-270.05728537,0.00016999,2]
[396233314,1764851442462,-500.0,0.00016999,2]
[396233315,1764851442472,-500.0,0.00016999,2]
[396233316,1764851442481,-500.0,0.00016999,2]
[396233317,1764851442491,-500.0,0.00016999,2]
[396233318,1764851442501,-500.0,0.00016999,2]
[396233319,1764851442511,-500.0,0.00016999,2]
[396233320,1764851442520,-173.63300387,0.00016999,2]
[396233321,1764851442530,-604151.20339471,0.00017,2]
[396233322,1764851442694,-956.92266974,0.00017,2]
[396233323,1764851442718,-18921.29322237,0.00017,2]
[396233327,1764851445564,-902.96437365,0.00016159,2]
[396233328,1764851445576,-1644.12255571,0.00016159,2]
[396233329,1764851445585,-396372.61881502,0.00017,2]
[396233333,1764851446039,-1609850.45569538,0.00017,2]
[396233334,1764851446051,-336.78514541,0.00017,2]
[396233335,1764851446062,-9535.13739471,0.00017,2]
[396233336,1764851446074,-3191.76006275,0.00017,2]
[396233337,1764851446088,-33306.64088038,0.00017,2]
[396233361,1764851945459,150.0,0.00015883,120]
[396233362,1764852262772,1225.16089787,0.00025,120]
[396233378,1764852490496,973.8,0.00025,120]
[396233399,1764852538698,363.0,0.00025,120]
[396233426,1764852631972,-276.0,0.00015164,2]
[396233428,1764852631983,-829.34,0.00015164,2]
[396233430,1764852631993,-999.0,0.00015172,3]
[396233432,1764852632002,-150.0,0.00015288,2]
[396233434,1764852632012,-150.0,0.00015288,2]
[396233436,1764852632021,-42.88748195,0.00015288,2]
[396233438,1764852632035,-107.11251805,0.00015288,2]
[396233440,1764852632044,-150.0,0.00015288,2]
[396233442,1764852632053,-150.0,0.00015288,2]
[396233444,1764852632062,-150.0,0.00015288,2]
[396233446,1764852632071,-150.0,0.00015288,2]
[396233448,1764852632080,-150.4153374,0.00015288,2]
[396233450,1764852632089,-150.0,0.00015288,2]
[396233452,1764852632099,-24.75929424,0.00015288,2]
[396233455,1764852632110,-239.75695191,0.00015288,2]
[396233457,1764852632119,-150.0,0.00015288,2]
[396233459,1764852632128,-153.83407745,0.00015288,2]
[396233461,1764852632137,-63.97395097,0.00015353,2]
[396233464,1764852632163,-86.02604903,0.00015353,2]
[396233466,1764852632172,-150.0,0.00015401,2]
[396233468,1764852632181,-150.0,0.00015418,2]
[396233470,1764852632190,-22.23140417,0.00015442,2]
[396233472,1764852632200,-127.76859583,0.00015442,2]
[396233474,1764852632210,-150.0,0.00015476,2]
[396233477,1764852632220,-45.56065867,0.00015484,2]
[396233479,1764852632231,-104.43934133,0.00015484,2]
[396233481,1764852632240,-150.0,0.00015514,2]
[396233483,1764852632250,-150.0,0.0001553,2]
[396233485,1764852632258,-150.0,0.00015549,2]
[396233487,1764852632268,-103.41727829,0.00015597,2]
[396233491,1764852632306,-46.58272171,0.00015597,2]
[396233492,1764852632315,-344.64814503,0.00015599,2]
[396233493,1764852632327,-206.35185497,0.00015599,2]
[396233494,1764852632336,-362.96401924,0.00015599,2]
[396233495,1764852632347,-384.03598076,0.00015599,2]
[396233496,1764852632356,-177.48587458,0.00015599,2]
[396233497,1764852632366,-150.0,0.00015614,2]
[396233498,1764852632375,-150.0,0.00015627,2]
[396233499,1764852632385,-150.0,0.00015627,2]
[396233500,1764852632395,-89.23242716,0.0001564,2]
[396233501,1764852632407,-295.76757284,0.0001564,2]
[396233502,1764852632416,-150.0,0.00015665,2]
[396233503,1764852632426,-150.0,0.0001568,2]
[396233504,1764852632436,-150.0,0.00015712,2]
[396233505,1764852632446,-150.0,0.00015741,2]
[396233506,1764852632456,-150.0,0.00015745,2]
[396233507,1764852632467,-150.0,0.00015751,2]
[396233508,1764852632477,-150.0,0.00015773,2]
[396233509,1764852632487,-300.0,0.0001581,2]
[396233510,1764852632496,-150.0,0.0001581,2]
[396233511,1764852632506,-150.0,0.00015854,2]
[396233512,1764852632514,-150.0,0.00015854,2]
[396233513,1764852632524,-253.77,0.00015862,3]
[396233514,1764852632535,-501.11705204,0.00015873,2]
[396233515,1764852632545,-546.22114307,0.00015873,2]
[396233516,1764852632554,-165.17861592,0.00015873,2]
[396233517,1764852632563,-176.29129449,0.00015873,2]
[396233518,1764852632572,-503.6363528,0.00015873,2]
[396233519,1764852632582,-168.9286466,0.00015873,2]
[396233520,1764852632592,-155.17930248,0.00015873,2]
[396233521,1764852632601,-500.6177504,0.00015873,2]
[396233522,1764852632610,-160.17773752,0.00015873,2]
[396233523,1764852632620,-500.55029733,0.00015873,2]
[396233524,1764852632629,-500.70568226,0.00015873,2]
[396233525,1764852632638,-500.3679934,0.00015873,2]
[396233526,1764852632647,-501.73771729,0.00015873,2]
[396233527,1764852632657,-606.87004686,0.00015873,2]
[396233528,1764852632666,-500.54827383,0.00015873,2]
[396233529,1764852632676,-500.0,0.00015873,2]
[396233530,1764852632685,-500.0,0.00015873,2]
[396233531,1764852632695,-500.0,0.00015873,2]
[396233532,1764852632703,-500.57965012,0.00015873,2]
[396233533,1764852632713,-500.6271073,0.00015873,2]
[396233534,1764852632723,-500.0,0.00015873,2]
[396233535,1764852632732,-500.0,0.00015873,2]
[396233536,1764852632741,-150.0,0.00015876,2]
[396233537,1764852632751,-150.0,0.00015883,2]
[396233538,1764852632760,-354.46863688,0.000159,2]
[396233539,1764852632769,-150.0,0.00015905,2]
[396233540,1764852632779,-354.46863686,0.00015915,2]
[396233541,1764852632788,-150.0,0.00015941,2]
[396233542,1764852632797,-150.0,0.00015967,2]
[396233543,1764852632806,-150.0,0.00015967,2]
[396233544,1764852632816,-428.83849212,0.00015999,2]
[396233545,1764852632825,-500.0,0.00015999,2]
[396233546,1764852632834,-500.0,0.00015999,2]
[396233547,1764852632844,-500.0,0.00015999,2]
[396233548,1764852632853,-500.0,0.00015999,2]
[396233549,1764852632863,-500.0,0.00015999,2]
[396233550,1764852632875,-500.0,0.00015999,2]
[396233551,1764852632884,-150.0,0.00016006,2]
[396233552,1764852632893,-150.0,0.00016016,2]
[396233553,1764852632902,-150.0,0.00016043,2]
[396233554,1764852632912,-150.0,0.0001606,2]
[396233555,1764852632921,-150.0,0.00016072,2]
[396233556,1764852632930,-150.0,0.0001608,2]
[396233557,1764852632939,-150.0,0.00016137,2]
[396233558,1764852632949,-150.0,0.00016137,2]
[396233559,1764852632958,-150.0,0.00016137,2]
[396233560,1764852632967,-150.0,0.00016137,2]
[396233561,1764852632976,-150.0,0.00016194,2]
[396233562,1764852632985,-150.0,0.00016202,2]
[396233563,1764852632994,-150.0,0.00016214,2]
[396233564,1764852633003,-150.0,0.00016231,2]
[396233565,1764852633013,-150.0,0.00016258,2]
[396233566,1764852633022,-150.0,0.00016268,2]
[396233567,1764852633031,-150.0,0.00016307,2]
[396233568,1764852633040,-150.0,0.00016307,2]
[396233569,1764852633050,-150.0,0.00016333,2]
[396233570,1764852633059,-153.797,0.00016349,2]
[396233571,1764852633069,-2212.061,0.00016349,2]
[396233572,1764852633079,-166.66,0.00016349,2]
[396233573,1764852633088,-299.99,0.00016349,4]
[396233574,1764852633098,-9999.99,0.00016349,2]
[396233575,1764852633108,-1584.26,0.00016349,2]
[396233576,1764852633117,-999.99,0.00016349,2]
[396233577,1764852633127,-150.0,0.00016369,2]
[396233578,1764852633137,-150.0,0.00016398,2]
[396233579,1764852633147,-354.46863686,0.000164,2]
[396233580,1764852633156,-20261.20829059,0.000164,2]
[396233581,1764852633166,-150.0,0.0001642,2]
[396233582,1764852633176,-150.0,0.0001642,2]
[396233583,1764852633186,-150.0,0.00016464,2]
[396233584,1764852633195,-28336.22993263,0.000165,2]
[396233585,1764852633208,-1277.81018795,0.000165,2]
[396233586,1764852633219,-328.3290225,0.000165,2]
[396233587,1764852633230,-606.54860783,0.000165,2]
[396233588,1764852637590,-184.0,0.00015599,2]
[396233589,1764852637600,-5197.06928883,0.000165,2]
[396233590,1764852637611,-2576.0915,0.000165,2]
[396233591,1764852637689,-7389.36454677,0.000165,2]
[396233594,1764852639600,-2540.5043997,0.000165,2]
[396233595,1764852639655,-1082.44148629,0.000165,2]
[396233596,1764852639667,-506.37642362,0.000165,2]
[396233597,1764852639781,-26.60894162,0.000165,2]
[396233598,1764852639792,-23872.8047668,0.000165,2]
[396233599,1764852639803,-413.22446657,0.000165,2]
[396233600,1764852639823,-5378.22892304,0.000165,2]
[396233601,1764852639835,-680468.36750585,0.000165,2]
[396233602,1764852639844,-176.3060291,0.000165,2]
[396233603,1764852639854,-150.0,0.00016501,2]
[396233604,1764852639864,-150.0,0.00016523,2]
[396233605,1764852639876,-150.0,0.00016529,2]